bitfinex-derivatives/quotes_BTCF0:USTF0_20240820
["timestamp","ask_amount","ask_price","bid_price","bid_amount"]
[1724149551304,0.02,60778.0,60777.0,0.66099215]
[1724149552313,0.02,60778.0,60777.0,0.69681965]
[1724149552702,0.02,60778.0,60777.0,0.6711115]
[1724149552903,0.02,60778.0,60777.0,0.79640276]
[1724149553803,0.02,60778.0,60777.0,0.82211091]
[1724149554004,0.02,60778.0,60777.0,0.79640276]
[1724149554611,0.02,60778.0,60777.0,0.71417526]
[1724149555008,0.02,60778.0,60777.0,0.60060706]
[1724149555214,0.02,60778.0,60777.0,0.78308033]
[1724149557509,0.02,60778.0,60777.0,0.75737218]
[1724149557711,0.02,60778.0,60777.0,0.73166402]
[1724149557909,0.02,60778.0,60777.0,0.78308034]
[1724149558111,0.02,60778.0,60777.0,0.80672466]
[1724149558308,0.02,60778.0,60777.0,0.82421339]
[1724149561014,0.02,60778.0,60777.0,0.71417529]
[1724149561221,0.02,60778.0,60777.0,0.80672464]
[1724149561419,0.02,60778.0,60777.0,0.82421337]
[1724149562137,0.02,60778.0,60777.0,0.97421337]
[1724149562427,0.00024682,60781.0,60780.0,0.065781]
[1724149562632,0.00024682,60781.0,60780.0,0.41481037]
[1724149563023,0.00024682,60781.0,60780.0,0.41480375]
[1724149563727,0.00024682,60781.0,60780.0,0.29051908]
[1724149563936,0.00724682,60781.0,60780.0,0.29051908]
[1724149564329,0.00724682,60781.0,60780.0,0.23910055]
[1724149564538,0.00724682,60781.0,60780.0,0.29051407]
[1724149565846,0.00724682,60781.0,60780.0,0.29151407]
[1724149570029,0.00724682,60781.0,60780.0,0.65231407]
[1724149570838,0.00724682,60781.0,60780.0,0.85982126]
[1724149571740,0.00724682,60781.0,60780.0,1.01982126]
[1724149572145,0.00724682,60781.0,60780.0,1.01981996]
[1724149572445,0.00724682,60781.0,60780.0,0.90978819]
[1724149572648,0.00724682,60781.0,60780.0,1.01981879]
[1724149572837,0.00724682,60781.0,60780.0,0.93759364]
[1724149574041,0.13124434,60788.0,60787.0,0.065774]
[1724149574042,0.06547234,60788.0,60787.0,0.065774]
[1724149574237,0.13123934,60793.0,60790.0,0.06577]
[1724149574439,0.13123934,60793.0,60792.0,0.4745]
[1724149574440,0.065767,60793.0,60792.0,0.4745]
[1724149574746,0.065767,60793.0,60792.0,0.59162651]
[1724149575238,0.065767,60793.0,60792.0,0.65739451]
[1724149575831,0.06547234,60796.0,60792.0,0.65739451]
[1724149575832,0.13123634,60796.0,60792.0,0.59162651]
[1724149576142,0.065764,60796.0,60795.0,0.16295862]
[1724149576347,0.065764,60796.0,60795.0,0.18866145]
[1724149576940,0.069764,60796.0,60795.0,0.16510564]
[1724149577141,0.069764,60796.0,60795.0,0.21435428]
[1724149577341,0.004,60796.0,60795.0,0.20516783]
[1724149577546,0.13148016,60799.0,60795.0,0.23087043]
[1724149577851,0.004,60796.0,60795.0,0.066765]
[1724149578042,0.004,60796.0,60795.0,0.11816902]
[1724149578436,0.005,60796.0,60795.0,0.14270146]
[1724149578643,0.005,60796.0,60795.0,0.11699945]
[1724149578841,0.10320591,60796.0,60795.0,0.067765]
[1724149579245,0.005,60796.0,60795.0,0.0934669]
[1724149579545,0.001,60796.0,60795.0,0.0934669]
[1724149579741,0.001,60796.0,60795.0,0.2071669]
[1724149579942,0.001,60796.0,60795.0,0.2061669]
[1724149580149,0.005,60796.0,60795.0,0.181465]
[1724149589146,0.005,60796.0,60795.0,0.23069945]
[1724149592147,0.005,60796.0,60795.0,0.181465]
[1724149593853,0.03675073,60796.0,60795.0,0.181465]
[1724149596552,0.03675073,60796.0,60795.0,0.20716681]
[1724149598657,0.03675073,60796.0,60795.0,0.181465]
[1724149599756,0.03675073,60796.0,60795.0,0.067765]
[1724149599957,0.03675073,60796.0,60795.0,0.181465]
[1724149600855,0.005,60796.0,60795.0,0.24717899]
[1724149602160,0.005,60796.0,60795.0,0.181465]
[1724149603857,0.005,60796.0,60795.0,0.53248058]
[1724149604057,0.00024682,60799.0,60798.0,0.065762]
[1724149604260,0.00024682,60799.0,60798.0,0.179462]
[1724149604453,0.00024682,60799.0,60798.0,0.35170811]
[1724149605370,0.00524682,60799.0,60798.0,0.41947011]
[1724149605861,0.00224682,60799.0,60798.0,0.41847011]
[1724149606857,0.00124682,60799.0,60798.0,0.41747011]
[1724149607164,0.00124682,60799.0,60798.0,0.57747011]
[1724149608161,0.00124682,60799.0,60798.0,0.65958381]
[1724149608368,0.00024682,60799.0,60798.0,0.66058381]
[1724149608859,0.00024682,60799.0,60798.0,0.814024]
[1724149609059,0.03199343,60799.0,60798.0,0.814024]
[1724149610358,0.03199343,60799.0,60798.0,0.86542094]
[1724149612254,0.03199343,60799.0,60798.0,0.50462094]
[1724149612454,0.03199343,60799.0,60798.0,0.86542094]
[1724149612662,0.03199343,60799.0,60798.0,0.83972247]
[1724149612965,0.03199343,60799.0,60798.0,0.86542094]
[1724149614069,0.11470245,60804.0,60802.0,0.065757]
[1724149614363,0.11470245,60805.0,60804.0,0.13151]
[1724149614556,0.14644677,60805.0,60804.0,0.29660694]
[1724149614961,0.03174432,60805.0,60804.0,0.24521]
[1724149615157,0.03174432,60805.0,60804.0,0.29660324]
[1724149615957,0.06569142,60811.0,60810.0,0.065749]
[1724149616158,0.00024682,60811.0,60810.0,0.45224469]
[1724149616458,0.00024682,60811.0,60810.0,0.65727881]
[1724149616657,0.00024682,60811.0,60810.0,0.591639]
[1724149617351,0.00024682,60811.0,60810.0,0.65824007]
[1724149617765,0.00024682,60811.0,60810.0,0.65924007]
[1724149618657,0.00024682,60811.0,60810.0,0.593639]
[1724149620255,0.00024682,60811.0,60810.0,0.592639]
[1724149620459,0.00024682,60811.0,60810.0,0.593639]
[1724149620654,0.00024682,60811.0,60810.0,0.56794469]
[1724149620859,0.00024682,60811.0,60810.0,0.59363602]
[1724149621159,0.00024682,60811.0,60810.0,0.542249]
[1724149621368,0.00024682,60811.0,60810.0,0.59363602]
[1724149621760,0.00024682,60811.0,60810.0,0.59263602]
[1724149623469,0.00024682,60811.0,60810.0,0.47893602]
[1724149623665,0.00024682,60811.0,60810.0,0.59263602]
[1724149624165,0.00024682,60811.0,60810.0,0.541249]
[1724149624359,0.00024682,60811.0,60810.0,0.56694251]
[1724149625463,0.00024682,60811.0,60810.0,0.541249]
[1724149626664,0.00024682,60811.0,60810.0,0.59041413]
[1724149627361,0.00024682,60811.0,60810.0,0.541249]
[1724149629562,0.17969382,60811.0,60810.0,0.3618]
[1724149629766,0.065752,60807.0,60806.0,0.04918072]
[1724149629966,0.131506,60806.0,60805.0,0.04918072]
[1724149630271,0.065754,60805.0,60804.0,0.37111576]
[1724149630574,0.065754,60805.0,60799.0,0.11494072]
[1724149630575,0.559154,60805.0,60799.0,0.11494072]
[1724149630762,0.559154,60805.0,60799.0,0.06576]
[1724149630763,0.1137,60800.0,60799.0,0.06576]
[1724149631169,0.1137,60800.0,60798.0,0.00024682]
[1724149631170,0.06576,60799.0,60798.0,0.00024682]
[1724149632273,0.06576,60799.0,60798.0,0.00424682]
[1724149633274,0.06576,60799.0,60798.0,0.01424682]
[1724149637377,0.09751,60799.0,60798.0,0.01424682]
[1724149637675,0.21121,60799.0,60798.0,0.01424682]
[1724149639079,0.17946,60799.0,60798.0,0.01424682]
[1724149643776,0.17946,60799.0,60798.0,0.08000882]
[1724149644080,0.06576,60799.0,60798.0,0.08000882]
[1724149644282,0.06576,60799.0,60798.0,0.19370882]
[1724149649201,0.06576,60799.0,60798.0,0.08000882]
[1724149649596,0.06576,60799.0,60798.0,0.01424682]
[1724149650100,0.17946,60799.0,60798.0,0.01424682]
[1724149650892,0.17946,60799.0,60798.0,0.03994707]
[1724149653196,0.17946,60799.0,60798.0,0.08912779]
[1724149654209,0.24522,60799.0,60798.0,0.03994707]
[1724149654400,0.73866,60799.0,60798.0,0.01424682]
[1724149655306,0.74891063,60799.0,60798.0,0.01424682]
[1724149656307,0.81426677,60799.0,60798.0,0.01424682]
[1724149656510,0.32082677,60799.0,60798.0,0.01424682]
[1724149657204,0.25547063,60799.0,60798.0,0.01424682]
[1724149658105,0.25547063,60799.0,60798.0,0.06344531]
[1724149659107,0.25547063,60799.0,60798.0,0.01424682]
[1724149661617,0.14177063,60799.0,60798.0,0.01424682]
[1724149661918,0.25547063,60799.0,60798.0,0.01424682]
[1724149664319,0.32123063,60799.0,60798.0,0.01424682]
[1724149668808,0.32123063,60799.0,60798.0,0.06354648]
[1724149670117,0.31098,60799.0,60798.0,0.06354648]
[1724149670422,0.24522,60799.0,60798.0,0.06354648]
[1724149671710,0.06576,60799.0,60798.0,0.06354648]
[1724149671910,0.17946,60799.0,60798.0,0.06354648]
[1724149672514,0.17946,60799.0,60798.0,0.11114648]
[1724149673417,0.17946,60799.0,60798.0,0.17690848]
[1724149674009,0.17946,60799.0,60798.0,0.12760882]
[1724149674327,0.17946,60799.0,60798.0,0.15331094]
[1724149675312,0.17946,60799.0,60798.0,0.12760882]
[1724149675513,0.17946,60799.0,60798.0,0.17901304]
[1724149680216,0.17946,60799.0,60798.0,0.22811304]
[1724149684324,0.24522,60799.0,60798.0,0.06565104]
[1724149684537,0.2769719,60799.0,60798.0,0.06565104]
[1724149684920,0.2769719,60799.0,60798.0,0.03994893]
[1724149685132,0.2769719,60799.0,60798.0,0.0399498]
[1724149685432,0.2769719,60799.0,60798.0,0.01424682]
[1724149685630,0.2769722,60799.0,60798.0,0.03994982]
[1724149686616,0.2112122,60799.0,60798.0,0.03994982]
[1724149686817,0.17946,60799.0,60798.0,0.06565282]
[1724149687725,0.24522,60799.0,60798.0,0.06565282]
[1724149688231,0.06576,60799.0,60798.0,0.06565282]
[1724149688422,0.17946,60799.0,60798.0,0.06565282]
[1724149689032,0.17946,60799.0,60798.0,0.03994982]
[1724149689225,0.17946,60799.0,60798.0,0.06565204]
[1724149689529,0.24522,60799.0,60798.0,0.06565204]
[1724149690128,0.17946,60799.0,60798.0,0.06565204]
[1724149691229,0.26143439,60799.0,60798.0,0.06565204]
[1724149691423,0.32719439,60799.0,60798.0,0.06565204]
[1724149692525,0.26143439,60799.0,60798.0,0.06565204]
[1724149692725,0.24522,60799.0,60798.0,0.063584]
[1724149694735,0.24522,60799.0,60798.0,0.0656517]
[1724149696829,0.24522,60799.0,60798.0,0.06565176]
[1724149698234,0.27697154,60799.0,60798.0,0.06565176]
[1724149699735,0.24522,60799.0,60798.0,0.06565176]
[1724149702534,0.27697151,60799.0,60798.0,0.06565176]
[1724149702738,0.24522,60799.0,60798.0,0.06565176]
[1724149704837,0.24522,60799.0,60798.0,0.0656517]
[1724149706743,0.17946,60799.0,60798.0,0.0656517]
[1724149706935,0.24522,60799.0,60798.0,0.0656517]
[1724149707341,0.06576,60799.0,60798.0,0.0656517]
[1724149707538,0.17946,60799.0,60798.0,0.0656517]
[1724149707845,0.26142679,60799.0,60798.0,0.1609517]
[1724149708545,0.26142679,60799.0,60798.0,0.10954682]
[1724149708737,0.26142679,60799.0,60798.0,0.16095132]
[1724149708938,0.26142679,60799.0,60798.0,0.13524907]
[1724149708939,0.14772679,60799.0,60798.0,0.13524907]
[1724149709151,0.26142679,60799.0,60798.0,0.16095135]
[1724149709444,0.17946,60799.0,60798.0,0.22655242]
[1724149710141,0.17946,60799.0,60798.0,0.22655173]
[1724149711548,0.06576,60799.0,60798.0,0.22655173]
[1724149711848,0.17946,60799.0,60798.0,0.22655173]
[1724149712147,0.17946,60799.0,60798.0,0.16095066]
[1724149712546,0.17946,60799.0,60798.0,0.22655173]
[1724149713042,0.17946,60799.0,60798.0,0.16095066]
[1724149713242,0.17946,60799.0,60798.0,0.22655173]
[1724149713639,0.17946,60799.0,60798.0,0.16095066]
[1724149713839,0.17946,60799.0,60798.0,0.17843708]
[1724149714042,0.17946,60799.0,60798.0,0.24420326]
[1724149714241,0.17946,60799.0,60798.0,0.16095066]
[1724149714443,0.17946,60799.0,60798.0,0.22671811]
[1724149714741,0.17946,60799.0,60798.0,0.22671752]
[1724149714938,0.08196679,60802.0,60801.0,0.065758]
[1724149715142,0.07625791,60803.0,60802.0,0.065757]
[1724149715437,0.07625791,60803.0,60802.0,0.11716084]
[1724149715846,0.07625791,60803.0,60802.0,0.13464662]
[1724149716952,0.01050191,60803.0,60802.0,0.13464662]
[1724149717140,0.08196679,60806.0,60805.0,0.065754]
[1724149717448,0.3608,60808.0,60805.0,0.05140108]
[1724149717449,0.45303668,60808.0,60805.0,0.05140108]
[1724149717638,0.45303668,60808.0,60802.0,0.1187]
[1724149717639,0.01026989,60808.0,60807.0,0.1150545]
[1724149717844,0.14771679,60809.0,60808.0,0.065751]
[1724149717845,0.06575,60809.0,60808.0,0.065751]
[1724149718156,0.06575,60809.0,60808.0,0.14075063]
[1724149718345,0.06575,60809.0,60808.0,0.1150518]
[1724149718546,0.17945,60809.0,60808.0,0.4758518]
[1724149718749,0.17945,60809.0,60808.0,0.47794544]
[1724149719246,0.24491497,60809.0,60808.0,0.47581261]
[1724149719847,0.24591497,60809.0,60808.0,0.47681261]
[1724149720757,0.24691497,60809.0,60808.0,0.47681261]
[1724149721146,0.22369662,60809.0,60808.0,0.427551]
[1724149722553,0.3381849,60809.0,60808.0,0.427551]
[1724149723357,0.3381849,60809.0,60808.0,0.45324757]
[1724149723855,0.30644069,60809.0,60808.0,0.45324757]
[1724149724058,0.33818495,60809.0,60808.0,0.45324757]
[1724149724246,0.22369667,60809.0,60808.0,0.45324757]
[1724149724443,0.10999667,60809.0,60808.0,0.45324757]
[1724149724648,0.10999667,60809.0,60808.0,0.427551]
[1724149724949,0.10999667,60809.0,60808.0,0.47894332]
[1724149725352,0.10999667,60809.0,60808.0,0.47894286]
[1724149725546,0.03374426,60809.0,60808.0,0.47894286]
[1724149725747,0.00024682,60811.0,60808.0,1.37230286]
[1724149725748,0.11448829,60811.0,60808.0,1.37230286]
[1724149726054,0.18022384,60818.0,60817.0,0.065741]
[1724149726253,0.06574,60818.0,60817.0,0.56593722]
[1724149727348,0.06574,60818.0,60817.0,0.540241]
[1724149727855,0.06574,60818.0,60817.0,0.542241]
[1724149728054,0.06674,60818.0,60817.0,0.542241]
[1724149728449,0.06674,60818.0,60817.0,0.428541]
[1724149729958,0.06674,60818.0,60817.0,0.440541]
[1724149730360,0.06574,60818.0,60817.0,0.440541]
[1724149730547,0.06574,60818.0,60817.0,0.448541]
[1724149733460,0.06574,60818.0,60817.0,0.3828]
[1724149734653,0.13148,60818.0,60817.0,0.3828]
[1724149740964,0.19722,60818.0,60817.0,0.022]
[1724149741267,0.26254786,60818.0,60817.0,0.022]
[1724149741668,0.19722,60818.0,60817.0,0.022]
[1724149741860,0.26254786,60818.0,60817.0,0.022]
[1724149743064,0.19722,60818.0,60817.0,0.022]
[1724149743277,0.22896275,60818.0,60817.0,0.022]
[1724149744361,0.22896275,60818.0,60817.0,0.014]
[1724149744668,0.065746,60812.0,60811.0,0.01072467]
[1724149744870,0.179446,60812.0,60811.0,0.01072467]
[1724149745468,0.245192,60812.0,60811.0,0.01072467]
[1724149746053,0.34328336,60812.0,60811.0,0.01072467]
[1724149746670,0.245192,60812.0,60811.0,0.01072467]
[1724149746963,0.245192,60812.0,60811.0,0.01772467]
[1724149747164,0.34328336,60812.0,60811.0,0.01772467]
[1724149747468,0.34328336,60812.0,60811.0,0.03172467]
[1724149747660,0.245192,60812.0,60811.0,0.03172467]
[1724149752971,0.065746,60812.0,60811.0,0.09747167]
[1724149753560,0.065746,60812.0,60811.0,0.03172467]
[1724149754162,0.13121604,60812.0,60811.0,0.03172467]
[1724149758065,0.065746,60812.0,60811.0,0.03172467]
[1724149760265,0.065746,60812.0,60811.0,0.05742001]
[1724149762273,0.065746,60812.0,60811.0,0.08311535]
[1724149762975,0.16395107,60812.0,60811.0,0.08311535]
[1724149763176,0.065746,60812.0,60811.0,0.03172467]
[1724149763379,0.065746,60812.0,60811.0,0.08311535]
[1724149763877,0.65624307,60812.0,60811.0,0.07239068]
[1724149764075,1.28586607,60812.0,60803.0,0.0489]
[1724149764267,0.59064168,60805.0,60804.0,0.02569884]
[1724149764471,0.13151,60804.0,60803.0,0.0489]
[1724149764671,0.22980873,60804.0,60803.0,0.0489]
[1724149764875,0.13151,60804.0,60803.0,0.0489]
[1724149765376,0.34345574,60804.0,60803.0,0.0489]
[1724149766177,0.24521,60804.0,60803.0,0.0489]
[1724149767076,0.24521,60804.0,60803.0,0.0629]
[1724149767382,0.25541367,60804.0,60803.0,0.0629]
[1724149767575,0.25541367,60804.0,60803.0,0.0489]
[1724149767880,0.25741367,60804.0,60803.0,0.0769]
[1724149768869,0.25741367,60804.0,60803.0,0.028]
[1724149771677,0.32282914,60804.0,60803.0,0.028]
[1724149775680,0.25741367,60804.0,60803.0,0.028]
[1724149778787,0.13351,60804.0,60803.0,0.028]
[1724149779082,0.24721,60804.0,60803.0,0.028]
[1724149788180,0.31262547,60804.0,60803.0,0.028]
[1724149790190,0.24721,60804.0,60803.0,0.028]
[1724149791884,0.24721,60804.0,60803.0,0.07728714]
[1724149792283,0.24721,60804.0,60803.0,0.028]
[1724149794796,0.13351,60804.0,60803.0,0.028]
[1724149794997,0.24721,60804.0,60803.0,0.028]
[1724149801488,0.312965,60804.0,60803.0,0.028]
[1724149801695,0.131522,60798.0,60797.0,0.00024682]
[1724149801994,0.492322,60798.0,60797.0,0.00024682]
[1724149802893,0.493322,60798.0,60797.0,0.01424682]
[1724149804504,0.493322,60798.0,60797.0,0.01624682]
[1724149804505,0.494322,60798.0,60797.0,0.01624682]
[1724149804903,0.5048635,60798.0,60797.0,0.01624682]
[1724149820215,0.1440635,60798.0,60797.0,0.01624682]
[1724149826120,0.2577635,60798.0,60797.0,0.01624682]
[1724149827422,0.33967616,60798.0,60797.0,0.01624682]
[1724149829313,0.33967616,60798.0,60797.0,0.06556875]
[1724149829314,0.2577635,60798.0,60797.0,0.06556875]
[1724149829619,0.3235245,60798.0,60797.0,0.01624682]
[1724149830125,0.3235245,60798.0,60797.0,0.06557704]
[1724149831324,0.3235245,60798.0,60777.0,0.1137]
[1724149831325,0.131544,60788.0,60787.0,0.0821137]
[1724149831528,0.131544,60788.0,60781.0,0.0986613]
[1724149831529,0.065777,60784.0,60781.0,0.1272137]
[1724149831821,0.2614767,60782.0,60781.0,0.0451]
[1724149832011,0.179479,60782.0,60781.0,0.0451]
[1724149833326,0.179479,60782.0,60781.0,0.0471]
[1724149833327,0.180479,60782.0,60781.0,0.0471]
[1724149833719,0.246258,60782.0,60781.0,0.0471]
[1724149833926,0.247258,60782.0,60781.0,0.0551]
[1724149834122,0.247258,60782.0,60781.0,0.01]
[1724149834522,0.34544924,60782.0,60781.0,0.01]
[1724149835423,0.247258,60782.0,60781.0,0.01]
[1724149835824,0.247258,60782.0,60776.0,0.0456]
[1724149835825,0.065781,60780.0,60776.0,0.0456]
[1724149836025,0.065785,60776.0,60774.0,0.0454]
[1724149837032,0.13157,60776.0,60769.0,0.0479]
[1724149838331,0.13157,60776.0,60772.0,0.01012053]
[1724149838524,0.21325892,60776.0,60772.0,0.01012053]
[1724149838833,0.21425892,60776.0,60772.0,0.01012053]
[1724149839129,0.21525892,60776.0,60772.0,0.01012053]
[1724149839436,0.13357,60776.0,60772.0,0.01012053]
[1724149840023,0.13257,60776.0,60772.0,0.01012053]
[1724149840319,0.199355,60776.0,60769.0,0.0479]
[1724149841533,0.199355,60776.0,60769.0,0.05826916]
[1724149842125,0.313055,60776.0,60769.0,0.05826916]
[1724149845022,0.24727,60776.0,60769.0,0.05826916]
[1724149845736,0.24727,60776.0,60769.0,0.12406216]
[1724149846037,0.24727,60776.0,60770.0,0.065792]
[1724149846332,0.13357,60776.0,60770.0,0.065792]
[1724149846536,0.24727,60776.0,60770.0,0.065792]
[1724149848932,0.24727,60776.0,60771.0,0.065791]
[1724149849126,0.24727,60776.0,60772.0,0.0469]
[1724149849326,0.067785,60776.0,60772.0,0.0469]
[1724149849633,0.181485,60776.0,60774.0,0.065787]
[1724149850738,0.181485,60776.0,60772.0,0.0469]
[1724149851033,0.181485,60776.0,60772.0,0.112689]
[1724149853136,0.181485,60776.0,60773.0,0.065788]
[1724149854836,0.181485,60776.0,60774.0,0.065787]
[1724149859049,0.181485,60776.0,60772.0,0.0469]
[1724149859340,0.24676752,60776.0,60772.0,0.0469]
[1724149860146,0.181485,60776.0,60772.0,0.0469]
[1724149861438,0.14938815,60776.0,60772.0,0.0469]
[1724149861637,0.26308815,60776.0,60773.0,0.065788]
[1724149863447,0.181485,60776.0,60773.0,0.065788]
[1724149865547,0.181485,60776.0,60773.0,0.11508226]
[1724149866547,0.24727,60776.0,60773.0,0.11508226]
[1724149868637,0.24727,60776.0,60774.0,0.04929426]
[1724149871648,0.24727,60776.0,60773.0,0.065788]
[1724149872547,0.24727,60776.0,60773.0,0.13156823]
[1724149872747,0.24727,60776.0,60773.0,0.065788]
[1724149873139,0.13357,60776.0,60773.0,0.065788]
[1724149873343,0.24727,60776.0,60773.0,0.065788]
[1724149875050,0.24727,60776.0,60774.0,0.065787]
[1724149877740,0.32924155,60776.0,60774.0,0.065787]
[1724149879755,0.26345655,60776.0,60775.0,0.06615028]
[1724149880149,0.181485,60776.0,60775.0,0.09186292]
[1724149880951,0.181485,60776.0,60775.0,0.11757556]
[1724149882356,0.26344642,60776.0,60775.0,0.11757556]
[1724149884563,0.26344642,60776.0,60775.0,0.11757558]
[1724149884756,0.181485,60776.0,60775.0,0.11757558]
[1724149888065,0.181485,60776.0,60775.0,0.02607698]
[1724149888357,0.181485,60776.0,60775.0,0.05178968]
[1724149888358,0.21324929,60776.0,60775.0,0.05178968]
[1724149888558,0.27903429,60776.0,60775.0,0.05178968]
[1724149891965,0.27903429,60776.0,60775.0,0.05178988]
[1724149893762,0.24727,60776.0,60775.0,0.10114202]
[1724149894172,0.24727,60776.0,60775.0,0.05178988]
[1724149895368,0.24727,60776.0,60775.0,0.02607708]
[1724149896270,0.24727,60776.0,60775.0,0.04972337]
[1724149897168,0.24727,60776.0,60775.0,0.00036428]
[1724149899070,0.24727,60776.0,60775.0,0.04972393]
[1724149900766,0.42614855,60776.0,60775.0,0.00036428]
[1724149901271,0.42662086,60776.0,60775.0,0.00036428]
[1724149901466,0.27903431,60776.0,60775.0,0.00036428]
[1724149902063,0.42662086,60776.0,60775.0,0.00036428]
[1724149902662,0.21324931,60776.0,60775.0,0.06928072]
[1724149902967,0.27903431,60776.0,60775.0,0.06928072]
[1724149904364,0.27903455,60776.0,60775.0,0.06928072]
[1724149904772,0.27903455,60776.0,60775.0,0.01785471]
[1724149904973,0.27903455,60776.0,60775.0,0.06928071]
[1724149906871,0.27903455,60776.0,60775.0,0.05179028]
[1724149908881,0.24727,60776.0,60775.0,0.05179028]
[1724149909079,0.24727,60776.0,60775.0,0.10114993]
[1724149909576,0.24727,60776.0,60775.0,0.07543693]
[1724149909765,0.24727,60776.0,60775.0,0.10114993]
[1724149910171,0.24727,60776.0,60775.0,0.05179028]
[1724149910370,0.24727,60776.0,60775.0,0.00036428]
[1724149913385,0.24727,60776.0,60775.0,0.04972681]
[1724149914281,0.24727,60776.0,60775.0,0.00036428]
[1724149914682,0.24727,60776.0,60775.0,0.04972813]
[1724149916077,0.067785,60776.0,60775.0,0.00036428]
[1724149916384,0.067785,60776.0,60775.0,0.40436649]
[1724149916781,0.1333978,60776.0,60775.0,0.48648019]
[1724149917174,0.067785,60776.0,60775.0,0.40436649]
[1724149917374,0.067785,60776.0,60775.0,0.47015249]
[1724149918068,0.066785,60776.0,60775.0,0.47015249]
[1724149918275,0.067785,60776.0,60775.0,0.47014952]
[1724149918479,0.067785,60776.0,60775.0,0.49585864]
[1724149919685,0.066785,60776.0,60775.0,0.49585864]
[1724149919879,0.066785,60776.0,60775.0,0.50985864]
[1724149920485,0.065785,60776.0,60775.0,0.49236852]
[1724149920677,0.066785,60776.0,60775.0,0.49236852]
[1724149921474,0.066785,60776.0,60775.0,0.4666594]
[1724149921689,0.066785,60776.0,60775.0,0.49236852]
[1724149921881,0.066785,60776.0,60775.0,0.44095028]
[1724149922086,0.066785,60776.0,60775.0,0.49236852]
[1724149922782,0.066785,60776.0,60775.0,0.47836852]
[1724149922992,0.067785,60776.0,60775.0,0.48936852]
[1724149923678,0.066785,60776.0,60775.0,0.48936852]
[1724149923877,0.09954476,60776.0,60775.0,0.48936852]
[1724149924382,0.16532976,60776.0,60775.0,0.06278252]
[1724149924584,0.16532976,60776.0,60775.0,0.01136428]
[1724149924885,0.131584,60770.0,60769.0,0.3608]
[1724149925087,0.27704376,60770.0,60769.0,0.41222672]
[1724149925473,0.27704376,60770.0,60769.0,0.38651336]
[1724149925676,0.27704376,60770.0,60769.0,0.3608]
[1724149925881,0.27718486,60770.0,60769.0,0.3608]
[1724149926586,0.065794,60768.0,60767.0,0.01040623]
[1724149926784,0.065797,60765.0,60763.0,0.36104682]
[1724149926988,0.21125676,60765.0,60763.0,0.36104682]
[1724149927188,0.21126453,60765.0,60763.0,0.36104682]
[1724149927984,0.21126453,60765.0,60764.0,0.32533538]
[1724149928385,0.21226453,60765.0,60764.0,0.32533538]
[1724149929891,0.21326453,60765.0,60764.0,0.32533538]
[1724149930884,0.181497,60765.0,60764.0,0.32533538]
[1724149932792,0.181497,60765.0,60764.0,0.35105094]
[1724149933395,0.181497,60765.0,60764.0,0.37676652]
[1724149933591,0.247294,60765.0,60764.0,0.06153188]
[1724149935187,0.247294,60765.0,60764.0,0.11079141]
[1724149935491,0.247294,60765.0,60764.0,0.08507591]
[1724149935690,0.247294,60765.0,60764.0,0.05936027]
[1724149935898,0.247294,60765.0,60764.0,0.08507592]
[1724149936087,0.247294,60765.0,60764.0,0.03581639]
[1724149939790,0.247294,60765.0,60764.0,0.01010074]
[1724149940001,0.247294,60765.0,60764.0,0.02571565]
[1724149941091,0.065798,60764.0,60763.0,0.0106051]
[1724149941298,0.065798,60764.0,60763.0,0.02596247]
[1724149942200,0.066798,60764.0,60763.0,0.02596247]
[1724149942702,0.132596,60764.0,60763.0,0.02596247]
[1724149943001,0.133596,60764.0,60763.0,0.02696247]
[1724149943588,0.133596,60764.0,60763.0,0.0373098]
[1724149944603,0.133596,60764.0,60763.0,0.01159415]
[1724149945102,0.181498,60764.0,60763.0,0.01159415]
[1724149945299,0.067798,60764.0,60763.0,0.13260979]
[1724149945995,0.067798,60764.0,60763.0,0.18186932]
[1724149946402,0.067798,60764.0,60763.0,0.24766832]
[1724149947998,0.067798,60764.0,60763.0,0.22195268]
[1724149948196,0.067798,60764.0,60763.0,0.17269315]
[1724149950901,0.067798,60764.0,60763.0,0.01159415]
[1724149950902,0.133596,60764.0,60763.0,0.01159415]
[1724149952220,0.067798,60764.0,60763.0,0.01159415]
[1724149954614,0.133596,60764.0,60763.0,0.01159415]
[1724149954911,0.067798,60764.0,60763.0,0.01159415]
[1724149955215,0.181498,60764.0,60763.0,0.01159415]
[1724149956101,0.181498,60764.0,60763.0,0.03730996]
[1724149960808,0.181498,60764.0,60763.0,0.03730995]
[1724149963113,0.181498,60764.0,60763.0,0.01159415]
[1724149963311,0.181498,60764.0,60763.0,0.03730996]
[1724149963512,0.181498,60764.0,60763.0,0.01159415]
[1724149964216,0.181498,60764.0,60763.0,0.03730995]
[1724149966512,0.181498,60764.0,60763.0,0.03730996]
[1724149967618,0.181498,60764.0,60763.0,0.06302577]
[1724149968812,0.247296,60764.0,60763.0,0.05267844]
[1724149969016,0.32927975,60764.0,60763.0,0.00124682]
[1724149969218,0.247296,60764.0,60763.0,0.00124682]
[1724149969424,4.017296,60764.0,60763.0,0.05059659]
[1724149970013,4.0273316,60764.0,60763.0,0.05059659]
[1724149970218,4.0273316,60764.0,60763.0,0.00124682]
[1724149970620,4.0931296,60764.0,60763.0,0.00124682]
[1724149970921,4.0273316,60764.0,60763.0,0.00124682]
[1724149971221,0.131604,60761.0,60760.0,0.04934977]
[1724149971514,0.131604,60761.0,60756.0,0.06581538]
[1724149971515,0.065806,60757.0,60756.0,0.06581538]
[1724149971714,0.065806,60757.0,60756.0,0.05143772]
[1724149972416,0.065806,60757.0,60756.0,0.02571886]
[1724149972815,0.066806,60757.0,60756.0,0.02671886]
[1724149973318,0.131612,60757.0,60756.0,0.02571886]
[1724149973514,0.132612,60757.0,60756.0,0.02671886]
[1724149974016,0.132612,60757.0,60756.0,0.001]
[1724149974913,0.133612,60757.0,60756.0,0.001]
[1724149975115,0.19908897,60757.0,60756.0,0.001]
[1724149976016,0.133612,60757.0,60756.0,0.001]
[1724149984024,0.19904684,60757.0,60756.0,0.001]
[1724149984523,0.133612,60757.0,60756.0,0.001]
[1724149984716,0.19904684,60757.0,60756.0,0.001]
[1724149990025,0.31274684,60757.0,60756.0,0.001]
[1724149991034,0.247312,60757.0,60756.0,0.001]
[1724149991629,0.313118,60757.0,60756.0,0.001]